Cogmind - Beta 14 @@@ ROGUE MODE // 2024.10.18 @ 11:47:42 Player: canerib Result: Destroyed by D-53 Grenadier with Mini Grenade Launcher Performance ------------- Evolutions (0) 0 Regions Visited (2) 400 Robots Destroyed (19) 95 Value Destroyed (231) 231 Prototype IDs (0) 0 Alien Tech Used (0) 0 Bonus (0) 0 TOTAL SCORE: 726 Bonus ------- None Cogmind --------- Core Integrity 0/250 Matter 300/350 Energy 98/100 System Corruption 0% Temperature Cool (1) Movement Walking (120) Location -10/Mines Parts ------- > --- POWER (1) -------- (None) > --- PROPULSION (2) --- Aluminum Leg > --- UTILITY (2) ------ Small Storage Unit Small Matter Pod > --- WEAPON (2) ------- Light Assault Rifle > --- INVENTORY (8) ---- Light Ion Engine Hover Unit Flight Unit Flight Unit Sensor Array Experimental Sensor Array Hacking Suite EM Pulse Gun Peak State ------------ > --- POWER ------------ Ion Engine > --- PROPULSION ------- Aluminum Leg Aluminum Leg > --- UTILITY ---------- Small Storage Unit Small Matter Pod > --- WEAPON ----------- Small Laser Assault Rifle > --- INVENTORY -------- Light Ion Engine Aluminum Leg Compact Wheel Hover Unit Flight Unit Hacking Suite EM Pulse Gun Grenade Launcher [Rating: 8] Favorites ----------- Power Ion Engine Engine Ion Engine Propulsion Aluminum Leg Leg Aluminum Leg Wheel Compact Wheel Utility Small Storage Unit Storage Small Storage Unit Weapon Small Laser Energy Gun Small Laser Ballistic Gun Assault Rifle Launcher Grenade Launcher Build | -11 -10 -10 ------- Run | Yrd Mat Min Slots Evolved . | . . . Power . | . . . Propulsion . | . . . Utility . | . . . Weapon . | . . . Parts Attached 17 | 4 10 3 Power 2 | 1 . 1 Engine 2 | 1 . 1 Core . | . . . Reactor . | . . . Propulsion 5 | 2 3 . Treads . | . . . Leg 3 | . 3 . Wheel 2 | 2 . . Hover . | . . . Flight . | . . . Utility 2 | 1 1 . Device . | . . . Storage 2 | 1 1 . Processor . | . . . Hackware . | . . . Protection . | . . . Artifact . | . . . Weapon 8 | . 6 2 Energy Gun 1 | . 1 . Energy Cannon . | . . . Ballistic Gun 4 | . 3 1 Ballistic Cannon . | . . . Launcher 3 | . 2 1 Special Weapon . | . . . Impact Weapon . | . . . Slashing Weapon . | . . . Piercing Weapon . | . . . Special Melee Weapon . | . . . Unidentified Prototypes . | . . . Parts Lost 3 | . . 3 Power 1 | . . 1 Propulsion 1 | . . 1 Utility . | . . . Weapon 1 | . . 1 Highest Loss Streak 3 | . . 3 To Critical Strikes . | . . . Average Slot Usage (%) 97 | . 95 100 Engine 14 | . 14 14 Leg 23 | . 19 28 Wheel 4 | . 8 . Storage 25 | . 23 28 Energy Gun 9 | . 14 5 Ballistic Gun 10 | . 12 8 Launcher 7 | . 1 14 Peak Build Rating 8 | 4 8 8 Average Rating 7 | 3 6 7 On Entrance 3 | . 4 7 Naked Turns . | . . . Heaviest Build 15 | 10 15 15 Greatest Support 32 | 32 32 20 Greatest Overweight (x) . | . . . Average Overweight (x) . | . . . Largest Inventory Capacity 8 | 8 8 8 Average Capacity 7 | 7 8 8 Most Carried 8 | 6 8 8 Average Carried 6 | 4 6 7 Final Capacity 8 | 8 8 8 Final Carried 8 | 6 6 8 Class Distribution -------------------- 100% | Mutant Dominant Class ---------------- Mutant | -10/Materials Mutant | -10/Mines Resources | -11 -10 -10 ----------- Run | Yrd Mat Min Matter Collected 468 | 224 136 108 Remotely . | . . . Salvage Created 248 | . 215 33 Parts 39 | . 31 8 Haulers Intercepted . | . . . Recyclers Shooed 4 | . 4 . Parts Field Recycled . | . . . Retrieved Matter . | . . . Parts Self-Destructed . | . . . Prevented . | . . . Kills | -11 -10 -10 ------- Run | Yrd Mat Min Combat Hostiles Destroyed 14 | . 8 6 Guns 4 | . 3 1 AOE 10 | . 5 5 Classes Destroyed 6 | . 6 . Worker 1 | . 1 . Builder 2 | . 2 . Operator 1 | . 1 . Watcher 1 | . 1 . Swarmer 12 | . 6 6 Grunt 2 | . 2 . Best Kill Streak 6 | . 6 6 Combat Bots Only 6 | . 4 6 Max Kills in Single Turn 3 | . 3 3 Gunslinging . | . . . Exploded 3 | . 3 2 Melee . | . . . Uniques/NPCs Destroyed . | . . . Combat | -11 -10 -10 -------- Run | Yrd Mat Min Hostile Shots Fired 53 | . 28 25 Missed 12 | . 7 5 Damage Taken 818 | . 233 585 Core 275 | . 20 255 Absorbed by Shields . | . . . Core Remaining (%) 100 | 100 . . Volleys Fired 21 | . 17 4 Largest 2 | . 2 2 Hottest 70 | . 70 70 Shots Fired 42 | . 34 8 Gun 35 | . 31 4 Cannon . | . . . Launcher 7 | . 3 4 Special . | . . . Kinetic 15 | . 14 1 Thermal 20 | . 17 3 Explosive 7 | . 3 4 Electromagnetic . | . . . Robot Hit Streak 4 | . 4 1 Robot Miss Streak 2 | . 2 1 Penetration Max . | . . . Secondary Targets . | . . . Shots Hit Robots 20 | . 17 3 Core Hits 30 | . 23 7 Critical Kills . | . . . Critical Parts Destroyed . | . . . Critical Strikes . | . . . Melee Attacks . | . . . Impact . | . . . Slashing . | . . . Piercing . | . . . Sneak Attacks . | . . . Combat Hostiles . | . . . Follow-up Attacks . | . . . Damage Inflicted 778 | . 495 283 Guns 275 | . 252 23 Cannons . | . . . Explosions 503 | . 243 260 Melee . | . . . Ramming . | . . . Kinetic 124 | . 124 . Thermal 151 | . 128 23 Explosive 503 | . 243 260 Electromagnetic . | . . . Impact . | . . . Slashing . | . . . Piercing . | . . . Highest Corruption . | . . . Average Corruption . | . . . Corruption Purged . | . . . Corruption Blocked . | . . . Overload Shots . | . . . Overflow Damage 10 | . . 10 Projectiles . | . . . Explosions 10 | . . 10 Melee . | . . . Knockbacks . | . . . Impact . | . . . Kinetic . | . . . Secondary . | . . . Self-Inflicted Damage 22 | . 22 . Shots 1 | . 1 . Rammed . | . . . Targets Rammed . | . . . Kicked . | . . . Crushed . | . . . Highest Temperature 27 | . 18 27 Average Temperature 10 | . 9 13 Received Heat Transfer 66 | . 66 . Siege Activations . | . . . Robots Corrupted . | . . . Combat Hostiles . | . . . Parts Fried . | . . . Impact Corruptions . | . . . Robots Melted . | . . . Combat Hostiles . | . . . Parts Melted . | . . . Heat Transferred 350 | . 300 50 Parts Sabotaged . | . . . Parts Stolen . | . . . Parts Stripped . | . . . Power Chain Reactions . | . . . Alert | -11 -10 -10 ------- Run | Yrd Mat Min Peak Influence 299 | . 299 282 Initial 116 | . . 116 Average 184 | . 139 264 Maximum Alert Level 1 | . 1 1 Low Security (%) 46 | 100 79 2 Level 1 53 | . 20 97 Level 2 . | . . . Level 3 . | . . . Level 4 . | . . . Level 5 . | . . . High Security . | . . . Max Security . | . . . Squads Dispatched 1 | . 1 . Investigation . | . . . Extermination . | . . . Reinforcement 1 | . 1 . Assault . | . . . Garrison . | . . . Intercept . | . . . Searches Triggered . | . . . Construction Impeded . | . . . Haulers Reinforced . | . . . Active Scanning Responses . | . . . Cargo Convoy Interrupts . | . . . Stealth | -11 -10 -10 --------- Run | Yrd Mat Min Distress Signals 2 | . 2 . Communications Jammed . | . . . Distress Signals . | . . . Times Spotted 26 | . 18 8 Peak Tracking Total 6 | . 5 6 Tactical Retreats . | . . . Traps | -11 -10 -10 ------- Run | Yrd Mat Min Traps Triggered . | . . . Indirectly . | . . . Trap Hack Attempts . | . . . Triggered . | . . . Disarmed . | . . . Reprogrammed . | . . . Reused . | . . . Traps Extracted . | . . . Installed . | . . . Triggered . | . . . Machines | -11 -10 -10 ---------- Run | Yrd Mat Min Machines Disabled . | . . . Max in Single Turn . | . . . Machines Repaired . | . . . Machines Dismantled . | . . . Machines Sabotaged . | . . . Overloaded Fab Kills . | . . . Hacking | -11 -10 -10 --------- Run | Yrd Mat Min Machines Accessed 1 | . 1 . Terminals 1 | . 1 . Fabricators . | . . . Repair Stations . | . . . Recycling Units . | . . . Scanalyzers . | . . . Garrison Access . | . . . Total Hacks 2 | . 2 . Successful 2 | . 2 . Failed . | . . . Catastrophic . | . . . Database Lockouts . | . . . Manual 1 | . 1 . Terminals 2 | . 2 . Fabricators . | . . . Repair Stations . | . . . Recycling Units . | . . . Scanalyzers . | . . . Garrison Access . | . . . Terminal Hacks 2 | . 2 . Level Access Points 1 | . 1 . Branch Access Points 1 | . 1 . Fabricator Hacks . | . . . Repair Station Hacks . | . . . Recycling Unit Hacks . | . . . Scanalyzer . | . . . Garrison Access Hacks . | . . . Unauthorized Hacks . | . . . Terminals . | . . . Fabricators . | . . . Repair Stations . | . . . Recycling Units . | . . . Scanalyzers . | . . . Garrison Access . | . . . Data Cores Recovered . | . . . Used . | . . . Hacking Detections 1 | . 1 . Full Trace Events . | . . . Feedback Events . | . . . Feedback Blocked . | . . . Robot Schematics Acquired . | . . . Robots Built . | . . . Authchips . | . . . Time . | . . . Total Robot Build Rating . | . . . Part Schematics Acquired . | . . . Parts Built . | . . . Authchips . | . . . Time . | . . . Total Part Build Rating . | . . . Parts Repaired . | . . . Time . | . . . Parts Recycled . | . . . Recycled Matter . | . . . Retrieved Matter . | . . . Retrieved Components . | . . . Parts Scanalyzed . | . . . Part Schematics Acquired . | . . . Parts Damaged . | . . . Bothacking | -11 -10 -10 ------------ Run | Yrd Mat Min Used RIF Installer . | . . . Robots Hacked . | . . . Non-combat . | . . . Combat . | . . . Robot Hacks Applied . | . . . Relay Couplers Released . | . . . Fabnet Peak Effective % . | . . . Robots Rewired . | . . . Allies Hacked . | . . . Hacks Repelled . | . . . Allies | -11 -10 -10 -------- Run | Yrd Mat Min Total Allies . | . . . Largest Group . | . . . Highest-Rated Group . | . . . Highest-Rated Ally . | . . . Total Orders . | . . . Ally Attacks . | . . . Total Damage . | . . . Kills . | . . . Allies Corrupted . | . . . Allies Melted . | . . . Intel | -11 -10 -10 ------- Run | Yrd Mat Min Robot Analysis Total . | . . . Derelict Logs Recovered 1 | . . 1 Drone Launches . | . . . Drone Recoveries . | . . . Exploration | -11 -10 -10 ------------- Run | Yrd Mat Min Turns Passed 548 | 43 257 248 Spaces Moved 381 | 33 159 189 Core 7 | 7 . . Treads . | . . . Legs 285 | . 96 189 Wheels 89 | 26 63 . Hover . | . . . Flight . | . . . Fastest Speed 50 | 50 100 120 Average Speed 114 | 89 112 120 Slowest Speed 120 | 100 120 120 Overloaded Moves . | . . . Propulsion Burnouts . | . . . Robots Hopped . | . . . Cave-ins Triggered . | . . . Exploration Rate (%) 32 | 4 41 52 Regions Visited 2 Branch Regions 1 Pre-discovered Areas . | . . . Known Exits Taken 1 | . 1 . Unknown Exits Taken 1 | 1 . . Scrap Searched . | . . . Spaces Dug . | . . . Terrain Destroyed 25 | . 6 19 Melee . | . . . Projectile . | . . . AOE 25 | . 6 19 Terrain Rammed . | . . . Walls Destroyed . | . . . Machines Disabled . | . . . Actions | -11 -10 -10 --------- Run | Yrd Mat Min Total 454 | 46 203 205 Wait 6 | . 5 1 Move 379 | 32 158 189 Hop . | . . . Pick Up 23 | 10 8 5 Fast Attach . | . . . Attach 9 | 4 3 2 Detach . | . . . Swap 8 | . 7 1 Drop 8 | . 5 3 Fire 21 | . 17 4 Melee . | . . . Ram . | . . . Kick . | . . . Crush . | . . . Escape Stasis . | . . . Rewire . | . . . Trap . | . . . Miscellaneous . | . . . Route ------- -11/Scrapyard -10/Materials (discovered 5 exits: *Mat x3 / *Min x2) -10/Mines (discovered 1 exit: *Mat) History --------- Turn | Location | Event 24 | -11/Scrapyard | Discovered new exit (range 15) 44 | -11/Scrapyard | Entered Materials 49 | -10/Materials | Identified exit to Mines 49 | -10/Materials | Identified exit to Materials 301 | -10/Materials | Entered Mines 322 | -10/Mines | Build established: Mutant 388 | -10/Mines | Found a damaged Exp. Sensor Array with a note attached 392 | -10/Mines | Found Prototype Device 426 | -10/Mines | A weapon hastily lodged in a ceiling crevice suddenly fell to the ground 501 | -10/Mines | Assembled infested the area 546 | -10/Mines | Core integrity fell below 50% 548 | -10/Mines | Core integrity fell below 20% 549 | -10/Mines | Destroyed by D-53 Grenadier with Mini Grenade Launcher Last Messages --------------- 6V-4SS(g): "Hehe, this'll put a wrench in their mining defense operations..." 6V-4SS(g) slips into the shadows. ALERT: Infestation in the mines, dispatching Demolisher response squad. K-01 Serf collects debris. Acquired 104 matter. U-05 Engineer lays Concrete. K-01 Serf collects debris. U-05 Engineer lays Concrete. U-05 Engineer builds a Wall. K-01 Serf collects debris. K-01 Serf destroyed. U-05 Engineer lays Concrete. Grenade Launcher destroyed. Aluminum Leg destroyed. U-05 Engineer destroyed. Lgt. Ion Engine destroyed. The unstable cave ceiling collapses. HV Slug penetrates D-53 Grenadier. D-53 Grenadier suffers critical hit (Destroy). Map ----- +----------------------------------------------------+ | | | | | | | | | | | | | | | | | | | | | | | ?????????????????????????????????????????????????? | | ?????????????????????????????????????????????????? | | ?????????????????????????????????????????????????? | | ?????????????????????????????????????????????????? | | ?????????????????????????????????????????????????? | | ?????????????????????????????????????????????????? | | ?????????????????????????????????????????????????? | | ?????????????????????????????????????????????????? | | ?????????????########???????????????? ??????????? | | ????????????## # # ######???###### ??????????? | | ???????????## #### ?????????? | | ??????????? ??????????? | | ?????????? < ??????????????? | | ??????????g #?????????????????? | | ???????????# # d @ #??????????????????? | | ???????????# #d ;#?????????????????? | | ???????????# ###?????????????????? | | ?????????????# ## ##?????????????????? | | ?????????????#????# ##????????????????? | | ??????????????????# ###??????????????? | | ??????????????????## #??????????????? | | ??????????????????# #??????????????? | | ??????????????????# # ##??????????????? | | ??????????????????## =%######???????????????? | | ??????????????###### ! #???????????????????? | | ??????????????# #?????????????????? | | ??????????????# ### #????????????????? | | ??????????????# #### #??# ??????????????? | | ??????????????# #??## #??? ?????????????? | | ??????????????# #???## #?? ###?????????????? | | ??????????????# #????## ?? ##???????????????? | | ??????????????# #?????## #????????????????? | | ?????########## #???????# #????????????????? | | ?????# ####?????#### #?????????????????? | | ?????# ########### ##????????##?????????????????? | | ###### #######?## #####???????????????????????? | | # #?# #????????????? ?????????? | | # #?# [ ##????????????? ##???????? | | # #?## ###?????????????? #???????? | +----------------------------------------------------+ Best States ------------- Heat Dissipation 25 Energy Generation 10 Energy Capacity 250 Matter Stores 289 Matter Capacity 350 Sight Range 16 Terrain Scan Density 10 Evasion (%) 55 Item Schematics ----------------- None Robot Schematics ------------------ None Fabricated ------------ Nothing Alien Tech Used ----------------- None Achievements -------------- None Challenges ------------ None Game ------ Seed AssaultDisposableBuckler Manual? 0 Play Time 00:09:06 Cumulative 13.1 hours Start 2024.10.18 @ 11:38:18 End 2024.10.18 @ 11:47:42 Sessions 1 Manual Loads 0 Difficulty Rogue Special Mode None Game No. 23 Rogue 23 Adventurer 0 Explorer 0 Win Type - Total 0 Types 0/0/0/0/0/0/0/0/0 Lore% 8 Gallery% 17 Achievement% 16 Wizard Run 0 Options --------- Layout 1 ASCII 1 Keyboard 0 Movement Numpad Keybinds 0 Fullscreen 1 Font 48/Smallcaps Map View 76x35 Zoom Use 0% Tactical HUD 0 Map Filters NONE Filters NONE Steam 1 RUN: 8f4fe3fb-64b5-4db3-80ed-d43388f33cb7